[Event "Portugal-ch Seniors-65 2022"]
[Site "Atouguia da Baleia"]
[Date "2022.06.17"]
[Round "3.1"]
[White "Julio, Joao Manuel dos Sant"]
[Black "Gori, Andrea"]
[Result "0-1"]
[ECO "A00"]
[WhiteElo "2005"]
[BlackElo "1970"]
[Annotator "TA"]
[PlyCount "65"]
[EventDate "2022.06.09"]
[EventType "swiss"]
[EventCountry "POR"]
[SourceTitle "playchess.com"]
[Source "ChessBase"]
[SourceQuality "1"]
[TimeControl "5400+30"]

{[%evp 9,65,-58,-23,-27,-26,-57,-66,-80,-76,-78,-79,-79,-78,-93,-84,-91,-19,-66,-36,-43,-21,-31,0,-52,-45,-79,-75,-111,-94,-170,-93,-137,-135,-141,-128,-534,-475,-452,-319,-311,-326,-308,-250,-1211,-633,-859,-525,-4185,-1256,-29996,-29995,-29998,-269,-29990,357,-1311,-1286,-1032]} 1. g3 e5 2. Bg2 d5 3. e3 Nf6 4. Ne2 Nc6 5. b3 Bd6 (5... h5 $5 {[%cal Rh5h4]}) 6. Bb2 {A00: Irregular Openings.} Bf5 7. d3 Qd7 {[#]} 8. h3 $146 {Black is slightly better.} ({Predecessor:} 8. Nd2 O-O-O 9. h3 h5 10. a3 Rhe8 11. Nf3 e4 12. Nfd4 exd3 13. cxd3 Nxd4 14. Nxd4 {0-1 (30) Gitelson,A (2210)-Kotepalli,S (1914) Chess.com INT 2020}) 8... O-O-O 9. a4 Kb8 10. Ba3 Bxa3 11. Nxa3 Nb4 12. Qd2 a5 ({Black should play} 12... Qe7 $17) 13. O-O-O (13. g4 $11 {might be stronger.} Be6 14. O-O-O) 13... h6 14. Kb2 c6 15. Nc1 Qd6 16. Qe2 (16. g4 $11 Bh7 17. f4) 16... Rhe8 17. Rd2 Qc5 18. Rhd1 d4 {White must now prevent ...Nbd5. Black is much more active.} 19. e4 {Prevents Nbd5.} (19. Qe1 $17 {was necessary.}) 19... Bd7 ({And not} 19... Qc3+ 20. Kb1 $15) (19... Be6 $19 {Threatens to win with ...b5.} 20. f4 b5) 20. Na2 b5 21. Ra1 bxa4 {aiming for ...Nxa2.} 22. bxa4 $2 {[%mdl 8192]} (22. Nc4 $17 {is more resistant.} axb3 23. cxb3) 22... Be6 23. Nc4 Nd7 {[%cal Bf6d7,Bd7b6,Bb6c4][%mdl 32] Strongly threatening ...Nxa2.} 24. Nc1 Bxc4 25. dxc4 Nb6 26. Kb3 (26. Bf1 d3 27. cxd3 Qd4+ 28. Kb1 Nxc4 29. Rda2 Nxa2 30. Rxa2) 26... f6 27. Bf1 Re7 28. Ra3 Rb7 {[%cal Ob6c4] ( -> ...Nxc4!)} ({Wrong is} 28... Na6 $2 29. Ka2 $19) 29. Ra2 {[#]} Nxc4 $1 {[%cal Rb4d3][%mdl 512]} 30. Ra3 (30. c3 Nxa2+) 30... Rc7 $2 31. Ra1 $2 {[#]} (31. Qxc4 $19 Qb6 32. c3 Nd3+ 33. Kc2 Qb2+ 34. Kxd3 dxc3+ 35. Ke3 Qxd2+ 36. Kf3 Qxc1 37. Rxc3 Qd1+ 38. Kg2) 31... Re7 $4 {[%mdl 8192] [#]} 32. c3 $1 {[%mdl 8192]} d3 $19 (32... Rb7 33. Qxc4) 33. Nxd3 {Weighted Error Value: White=1.43/Black=0.85} 0-1

[Event "Portugal-ch Seniors-65 2022"]
[Site "Atouguia da Baleia"]
[Date "2022.06.17"]
[Round "3.2"]
[White "Mendes, Jorge Alberto Dacal"]
[Black "Antao, Jorge"]
[Result "1-0"]
[ECO "C30"]
[WhiteElo "1783"]
[BlackElo "1819"]
[Annotator "NA RC"]
[PlyCount "92"]
[EventDate "2022.06.09"]
[EventType "swiss"]
[EventCountry "POR"]
[SourceTitle "playchess.com"]
[Source "ChessBase"]
[SourceQuality "1"]
[TimeControl "5400+30"]

1. e4 {[%emt 0:00:01]} e5 {[%emt 0:01:08]} 2. f4 {[%emt 0:00:11]} Qh4+ {[%emt 0:00:48]} 3. g3 {[%emt 0:00:31]} Qe7 {[%emt 0:00:03]} 4. d3 {[%emt 0:04:40]} exf4 {[%emt 0:06:34]} 5. Bxf4 {[%emt 0:00:58]} Qb4+ {[%emt 0:00:51]} 6. Nd2 {[%emt 0:00:54]} Na6 {[%emt 0:06:51]} 7. Rb1 {[%emt 0:12:28]} Ne7 {[%emt 0:04:31]} 8. Ngf3 {[%emt 0:03:22]} Ng6 {[%emt 0:00:39]} 9. Be3 {[%emt 0:02:11]} h5 {[%emt 0:01:20]} 10. a3 {[%emt 0:00:28]} Qa5 {[%emt 0:05:54]} 11. c3 {[%emt 0:00:23]} c6 {[%emt 0:01:03]} 12. d4 {[%emt 0:02:40]} h4 {[%emt 0:00:52]} 13. g4 {[%emt 0:06:24]} h3 {[%emt 0:01:43]} 14. Nc4 {[%emt 0:06:37]} Qd8 {[%emt 0:02:57]} 15. Bg5 {[%emt 0:00:45]} f6 {[%emt 0:01:34]} 16. Bd2 {[%emt 0:15:32]} d5 {[%emt 0:03:29]} 17. exd5 {[%emt 0:07:14]} Bxg4 {[%emt 0:09:45]} 18. dxc6 {[%emt 0:01:55]} bxc6 {[%emt 0:07:16]} 19. Be2 {[%emt 0:05:37]} Qc7 {[%emt 0:07:13]} 20. Ne3 {[%emt 0:06:19]} Bc8 {[%emt 0:03:28]} 21. O-O {[%emt 0:04:58]} Nf4 {[%emt 0:01:57]} 22. Rf2 {[%emt 0:00:31]} Bb7 {[%emt 0:01:14]} 23. Nf1 {[%emt 0:01:11]} O-O-O {[%emt 0:01:05]} 24. Bxf4 {[%emt 0:02:51]} Qxf4 {[%emt 0:01:17]} 25. Ne5 {[%emt 0:00:05]} Qh6 {[%emt 0:03:52]} 26. Bg4+ {[%emt 0:01:10]} Kc7 {[%emt 0:04:53]} 27. Nf7 {[%emt 0:00:11]} Qh7 {[%emt 0:00:23]} 28. Nxd8 {[%emt 0:00:32]} Kxd8 {[%emt 0:00:30]} 29. Qe2 {[%emt 0:00:46]} Nc7 {[%emt 0:07:16]} 30. Re1 {[%emt 0:00:19]} Bd6 {[%emt 0:01:09]} 31. c4 {[%emt 0:01:06]} Re8 {[%emt 0:04:48]} 32. Qd2 {[%emt 0:03:26]} Rxe1 {[%emt 0:02:00]} 33. Qxe1 {[%emt 0:00:12]} Qg6 {[%emt 0:00:24]} 34. c5 {[%emt 0:03:47]} Qxg4+ {[%emt 0:00:34]} 35. Kh1 {[%emt 0:02:14]} Bf4 {[%emt 0:03:15]} 36. Qe4 {[%emt 0:03:52]} Nd5 {[%emt 0:00:52]} 37. Re2 {[%emt 0:00:35]} Qh5 {[%emt 0:01:23]} (37... Ba6 $142 38. Ng3 Kc7) 38. Rf2 {[%emt 0:00:19]} f5 {[%emt 0:00:24]} 39. Qe6 {[%emt 0:00:31]} g6 {[%emt 0:01:07]} 40. Re2 $2 {[%emt 0:00:56]} (40. Rxf4 $11 Nxf4 41. Qd6+ Ke8 42. Qxf4) 40... Qf3+ {[%emt 0:00:22]} 41. Kg1 {[%emt 0:00:01]} Bc8 {[%emt 0:01:10]} 42. Qe8+ {[%emt 0:01:07]} Kc7 {[%emt 0:00:02]} 43. Rf2 {[%emt 0:00:12]} Qg4+ {[%emt 0:00:27]} ({Avoid the trap} 43... Qd1 $2 44. Rxf4 Nxf4 45. Qe5+ Kb7 46. Qxf4 $19) 44. Kh1 {[%emt 0:00:09] [#]} Bd7 {[%emt 0:00:32]} (44... Ne3 $142 $1 {[%mdl 512]} 45. Qe7+ (45. Nxe3 Bxe3) 45... Kb8 46. Qxe3 Bxe3 47. Nxe3 Qe4+ 48. Kg1 Qxe3 49. b4 Qxd4 50. a4 Qg4+ 51. Kh1 Qd1+ 52. Rf1 Qxf1#) 45. Qe2 {[%emt 0:00:05]} Qxe2 {[%emt 0:00:45]} 46. Rxe2 {[%emt 0:00:16]} g5 $19 {[%emt 0:00:23]} 1-0

[Event "Portugal-ch Seniors-65 2022"]
[Site "Atouguia da Baleia"]
[Date "2022.06.17"]
[Round "3.3"]
[White "Morais, Vitor"]
[Black "Lopes, Carlos Correia"]
[Result "1-0"]
[ECO "A48"]
[WhiteElo "1878"]
[BlackElo "1766"]
[Annotator "NA RC"]
[PlyCount "49"]
[EventDate "2022.06.09"]
[EventType "swiss"]
[EventCountry "POR"]
[SourceTitle "playchess.com"]
[Source "ChessBase"]
[SourceQuality "1"]
[TimeControl "5400+30"]

1. d4 Nf6 2. Nf3 g6 3. Bf4 Bg7 4. e3 Nh5 5. Be5 f6 6. Bg3 d6 7. Be2 Nc6 8. O-O Bd7 9. c4 Nxg3 10. hxg3 f5 11. Nc3 O-O 12. Rc1 e5 13. d5 e4 14. dxc6 exf3 15. Bxf3 Bxc6 16. Bd5+ Kh8 17. b4 Qg5 18. b5 Bxd5 19. Nxd5 Rf7 20. a4 Re8 21. Qd3 h5 22. Rfd1 h4 23. gxh4 Qxh4 24. g3 Qg4 25. Qf1 1-0

[Event "Portugal-ch Seniors-65 2022"]
[Site "Atouguia da Baleia"]
[Date "2022.06.17"]
[Round "3.4"]
[White "Mendes, Rui Oscar"]
[Black "Santos, Amadeu Solha"]
[Result "1-0"]
[ECO "D02"]
[WhiteElo "1749"]
[BlackElo "1457"]
[Annotator "NA RC"]
[PlyCount "45"]
[EventDate "2022.06.09"]
[EventType "swiss"]
[EventCountry "POR"]
[SourceTitle "playchess.com"]
[Source "ChessBase"]
[SourceQuality "1"]
[TimeControl "5400+30"]

1. d4 {[%emt 0:00:02]} d5 {[%emt 0:00:13]} 2. Nf3 {[%emt 0:00:19]} Bf5 {[%emt 0:00:40]} 3. Bf4 {[%emt 0:00:58]} e6 {[%emt 0:00:34]} 4. e3 {[%emt 0:00:30]} a6 {[%emt 0:00:42]} 5. Bd3 {[%emt 0:01:49]} Ne7 {[%emt 0:04:11]} 6. O-O {[%emt 0:01:09]} Bxd3 {[%emt 0:02:03]} 7. Qxd3 {[%emt 0:00:40]} Ng6 {[%emt 0:00:59]} 8. Bg3 {[%emt 0:00:49]} Bd6 {[%emt 0:00:40]} 9. c4 {[%emt 0:08:26]} Nd7 {[%emt 0:02:33]} 10. Bxd6 {[%emt 0:24:13]} dxc4 {[%emt 0:03:41]} 11. Qxc4 {[%emt 0:08:02]} cxd6 {[%emt 0:00:19]} 12. Nc3 {[%emt 0:01:40]} O-O {[%emt 0:01:46]} 13. Rfd1 {[%emt 0:08:52]} Qb6 {[%emt 0:07:02]} 14. Qe2 {[%emt 0:02:31]} Rac8 {[%emt 0:01:52]} 15. Rac1 {[%emt 0:04:39]} Nf6 {[%emt 0:03:40]} 16. Na4 {[%emt 0:06:05]} Qb4 {[%emt 0:07:53]} 17. Nc3 {[%emt 0:03:20]} Rc4 {[%emt 0:03:14]} 18. a3 {[%emt 0:03:50]} Qb3 {[%emt 0:02:08]} 19. Nd2 {[%emt 0:00:41]} Qxb2 {[%emt 0:05:10]} 20. Nxc4 {[%emt 0:01:07]} Qb3 {[%emt 0:00:08]} 21. Qa2 {[%emt 0:01:53]} Qxa2 {[%emt 0:01:58]} 22. Nxa2 {[%emt 0:00:03]} Rc8 {[%emt 0:00:17]} 23. Nxd6 {[%emt 0:00:21]} 1-0

[Event "Portugal-ch Seniors-65 2022"]
[Site "Atouguia da Baleia"]
[Date "2022.06.17"]
[Round "3.5"]
[White "Palhais, Custodio"]
[Black "Catarro, Jose Joao Dias"]
[Result "1/2-1/2"]
[ECO "B01"]
[WhiteElo "1660"]
[BlackElo "1833"]
[Annotator "NA RC"]
[PlyCount "110"]
[EventDate "2022.06.09"]
[EventType "swiss"]
[EventCountry "POR"]
[SourceTitle "playchess.com"]
[Source "ChessBase"]
[SourceQuality "1"]
[TimeControl "5400+30"]

1. e4 {[%emt 0:00:04]} d5 {[%emt 0:00:05]} 2. exd5 {[%emt 0:00:35]} Nf6 {[%emt 0:00:04]} 3. Nf3 {[%emt 0:00:42]} Qxd5 {[%emt 0:01:09]} 4. Be2 {[%emt 0:00:24]} Bg4 {[%emt 0:01:48]} 5. d4 {[%emt 0:00:30]} e6 {[%emt 0:00:21]} 6. O-O {[%emt 0:00:51]} Nc6 {[%emt 0:00:47]} 7. Re1 {[%emt 0:03:21]} O-O-O {[%emt 0:02:53]} 8. Bf4 {[%emt 0:08:28]} h6 {[%emt 0:01:22]} 9. c3 {[%emt 0:01:53]} g5 {[%emt 0:01:56]} 10. Be5 {[%emt 0:00:39]} Be7 {[%emt 0:03:29]} 11. Nbd2 {[%emt 0:01:46]} Rhg8 {[%emt 0:02:52]} 12. Qa4 {[%emt 0:01:20]} Nd7 {[%emt 0:01:47]} 13. b4 {[%emt 0:07:13]} Nb6 {[%emt 0:00:38]} 14. Qb3 {[%emt 0:04:05]} f6 {[%emt 0:00:28]} 15. c4 {[%emt 0:01:45]} Qd7 {[%emt 0:00:31]} 16. c5 {[%emt 0:04:44]} Nd5 {[%emt 0:00:40]} 17. Bg3 {[%emt 0:02:46]} Ndxb4 {[%emt 0:03:42]} 18. Rab1 {[%emt 0:03:26]} Bf5 {[%emt 0:02:21]} 19. Bc4 {[%emt 0:00:53]} Bc2 {[%emt 0:01:39]} 20. Qb2 {[%emt 0:01:56]} e5 {[%emt 0:00:49]} 21. a3 {[%emt 0:05:13]} Bxb1 {[%emt 0:01:06]} 22. Rxb1 {[%emt 0:01:04]} Rgf8 {[%emt 0:02:18]} 23. axb4 {[%emt 0:01:40]} g4 {[%emt 0:00:31]} 24. Qa2 {[%emt 0:01:21]} Kb8 {[%emt 0:02:26]} 25. Be6 {[%emt 0:00:22]} Qe8 {[%emt 0:00:35]} 26. Bxg4 {[%emt 0:02:33]} f5 {[%emt 0:04:21]} 27. Bh3 {[%emt 0:00:45]} e4 {[%emt 0:01:13]} 28. b5 {[%emt 0:02:25]} exf3 29. bxc6 Qxc6 {[%emt 0:02:57]} 30. Be5 {[%emt 0:01:31]} Bf6 {[%emt 0:02:06]} 31. Nc4 {[%emt 0:04:08]} Qd5 {[%emt 0:05:48]} 32. Ra1 {[%emt 0:00:42]} a6 {[%emt 0:01:57]} 33. Bxf6 {[%emt 0:09:42]} Rxf6 {[%emt 0:00:10]} 34. Rb1 {[%emt 0:05:59]} Qxd4 {[%emt 0:00:34]} 35. Qb3 {[%emt 0:01:23]} Qd5 {[%emt 0:05:36]} 36. g3 {[%emt 0:02:14]} h5 {[%emt 0:01:46]} 37. Bf1 {[%emt 0:01:17]} h4 {[%emt 0:02:16]} 38. Qb2 {[%emt 0:00:29]} Rf7 {[%emt 0:02:47]} 39. Na5 {[%emt 0:02:49]} hxg3 {[%emt 0:02:13]} 40. Qxb7+ {[%emt 0:02:21]} Qxb7 {[%emt 0:00:21]} 41. Rxb7+ {[%emt 0:00:11]} Kc8 {[%emt 0:00:19]} 42. fxg3 {[%emt 0:01:54]} Rf6 {[%emt 0:02:57]} 43. Kf2 {[%emt 0:01:48]} Rd1 {[%emt 0:00:42]} 44. Ra7 {[%emt 0:01:20]} Ra1 {[%emt 0:00:24]} 45. c6 {[%emt 0:01:47]} Kd8 {[%emt 0:01:03]} 46. Rxa6 {[%emt 0:01:25]} Ra2+ {[%emt 0:00:13]} 47. Kxf3 {[%emt 0:00:37]} Rxh2 {[%emt 0:00:28]} 48. Bg2 {[%emt 0:01:14]} f4 {[%emt 0:04:41]} 49. gxf4 {[%emt 0:01:27]} Rh4 {[%emt 0:00:22]} 50. Nb7+ {[%emt 0:00:16]} Ke7 {[%emt 0:01:42]} 51. Ra4 {[%emt 0:00:54]} Rxc6 {[%emt 0:00:33]} 52. Re4+ {[%emt 0:00:53]} Kf8 {[%emt 0:01:29]} 53. Nd8 {[%emt 0:00:27]} Rc3+ {[%emt 0:01:17]} 54. Kf2 {[%emt 0:01:05]} c5 {[%emt 0:02:37]} 55. Ne6+ {[%emt 0:00:28]} Kg8 {[%emt 0:05:38]} 1/2-1/2

[Event "Portugal-ch Seniors-65 2022"]
[Site "Atouguia da Baleia"]
[Date "2022.06.19"]
[Round "5.1"]
[White "Gori, Andrea"]
[Black "Morais, Vitor"]
[Result "1/2-1/2"]
[ECO "B21"]
[WhiteElo "1970"]
[BlackElo "1878"]
[Annotator "NA RC"]
[PlyCount "21"]
[EventDate "2022.06.09"]
[EventType "swiss"]
[EventCountry "POR"]
[SourceTitle "playchess.com"]
[Source "ChessBase"]
[SourceQuality "1"]
[TimeControl "5400+30"]

1. e4 c5 2. f4 Nc6 3. Nc3 g6 4. Nf3 Bg7 5. Bb5 d6 6. d3 Bd7 7. O-O e6 8. Bxc6 Bxc6 9. Qe1 Ne7 10. f5 gxf5 11. Qh4 1/2-1/2

[Event "Portugal-ch Seniors-65 2022"]
[Site "Atouguia da Baleia"]
[Date "2022.06.19"]
[Round "5.2"]
[White "Mendes, Rui Oscar"]
[Black "Julio, Joao Manuel dos Sant"]
[Result "0-1"]
[ECO "D02"]
[WhiteElo "1749"]
[BlackElo "2005"]
[Annotator "NA RC"]
[PlyCount "112"]
[EventDate "2022.06.09"]
[EventType "swiss"]
[EventCountry "POR"]
[SourceTitle "playchess.com"]
[Source "ChessBase"]
[SourceQuality "1"]
[TimeControl "5400+30"]

1. d4 {[%emt 0:00:55]} d5 {[%emt 0:00:31]} 2. Nf3 {[%emt 0:00:29]} g6 {[%emt 0:00:34]} 3. b3 {[%emt 0:01:50]} Bg7 {[%emt 0:00:09]} 4. Bb2 {[%emt 0:00:08]} Nf6 {[%emt 0:00:30]} 5. Nbd2 {[%emt 0:00:25]} O-O {[%emt 0:00:36]} 6. e3 {[%emt 0:00:35]} b6 {[%emt 0:00:33]} 7. Be2 {[%emt 0:02:30]} Bb7 {[%emt 0:00:09]} 8. O-O {[%emt 0:00:19]} Nbd7 {[%emt 0:00:42]} 9. c4 {[%emt 0:00:41]} e6 {[%emt 0:01:32]} 10. Rc1 {[%emt 0:01:08]} c5 {[%emt 0:02:09]} 11. dxc5 {[%emt 0:01:46]} Nxc5 {[%emt 0:00:22]} 12. Qc2 {[%emt 0:16:41]} Rc8 {[%emt 0:05:30]} 13. Rfd1 {[%emt 0:10:47]} Re8 {[%emt 0:01:44]} 14. Ne5 {[%emt 0:06:10]} Qc7 {[%emt 0:04:03]} 15. Qb1 {[%emt 0:01:26]} a5 {[%emt 0:02:45]} 16. Nf1 {[%emt 0:12:36]} Red8 {[%emt 0:08:17]} 17. Ng3 {[%emt 0:07:59]} Nfe4 {[%emt 0:05:48]} 18. Nf3 {[%emt 0:07:20]} dxc4 {[%emt 0:03:31]} 19. Bxc4 {[%emt 0:03:05]} Rxd1+ {[%emt 0:01:17]} 20. Rxd1 {[%emt 0:00:11]} Rd8 {[%emt 0:02:38]} 21. Bxg7 {[%emt 0:02:53]} Rxd1+ {[%emt 0:05:59]} 22. Qxd1 {[%emt 0:00:18]} Kxg7 {[%emt 0:00:09]} 23. Nxe4 {[%emt 0:02:50]} Bxe4 {[%emt 0:00:51]} 24. Qd4+ {[%emt 0:01:00]} f6 {[%emt 0:00:40]} 25. Ng5 {[%emt 0:04:19]} e5 {[%emt 0:01:25] [#]} 26. Qxc5 $1 {[%emt 0:01:26]} Qxc5 {[%emt 0:00:13]} 27. Ne6+ {[%emt 0:00:20]} Kh6 {[%emt 0:00:05]} 28. Nxc5 {[%emt 0:00:19]} bxc5 {[%emt 0:00:01]} 29. f3 {[%emt 0:00:22]} Bc6 {[%emt 0:04:39]} 30. a4 $11 {[%emt 0:00:48]} Kg5 {[%emt 0:00:33]} 31. Kf2 {[%emt 0:00:37]} h5 {[%emt 0:00:53]} 32. g3 {[%emt 0:01:22]} h4 {[%emt 0:02:31]} 33. e4 {[%emt 0:02:02]} f5 {[%emt 0:03:03]} 34. Ke3 {[%emt 0:05:38]} hxg3 {[%emt 0:02:24]} 35. hxg3 {[%emt 0:00:06]} fxe4 {[%emt 0:00:11]} 36. fxe4 {[%emt 0:00:12]} Kg4 {[%emt 0:00:10]} 37. Bf7 {[%emt 0:00:45]} g5 {[%emt 0:02:21]} 38. Bd5 {[%emt 0:00:42]} Bd7 {[%emt 0:00:12]} 39. Kf2 {[%emt 0:00:15]} Kh3 {[%emt 0:00:42]} 40. Bf7 {[%emt 0:01:27]} Bc8 {[%emt 0:00:47]} 41. Bg6 {[%emt 0:01:16]} Ba6 {[%emt 0:03:03]} 42. Bf5+ {[%emt 0:00:46]} g4 {[%emt 0:00:19]} 43. Bd7 {[%emt 0:03:21]} Bd3 {[%emt 0:02:22]} 44. Bc6 {[%emt 0:00:23]} Bc2 {[%emt 0:00:22]} 45. Bd5 {[%emt 0:00:10]} Kh2 {[%emt 0:00:12]} 46. Be6 {[%emt 0:00:17]} Bd1 {[%emt 0:05:04]} 47. Bd5 {[%emt 0:00:57]} Kh3 {[%emt 0:02:29]} 48. Be6 {[%emt 0:00:39]} Bc2 {[%emt 0:07:30]} 49. Bd5 {[%emt 0:00:06]} Bd3 {[%emt 0:00:13]} 50. Bc6 {[%emt 0:01:06]} c4 {[%emt 0:00:23]} 51. bxc4 {[%emt 0:01:03]} Bxc4 {[%emt 0:00:10]} 52. Bd5 {[%emt 0:00:18]} Bd3 {[%emt 0:00:18]} 53. Ke3 {[%emt 0:00:55]} Kxg3 {[%emt 0:00:34]} 54. Kxd3 {[%emt 0:00:14]} Kh2 {[%emt 0:00:09]} 55. Be6 {[%emt 0:00:55]} g3 {[%emt 0:00:12]} 56. Bg4 {[%emt 0:00:28]} g2 {[%emt 0:00:14]} 0-1

[Event "Portugal-ch Seniors-65 2022"]
[Site "Atouguia da Baleia"]
[Date "2022.06.19"]
[Round "5.3"]
[White "Mendes, Jorge Alberto Dacal"]
[Black "Palhais, Custodio"]
[Result "0-1"]
[ECO "C36"]
[WhiteElo "1783"]
[BlackElo "1660"]
[Annotator "NA RC"]
[PlyCount "86"]
[EventDate "2022.06.09"]
[EventType "swiss"]
[EventCountry "POR"]
[SourceTitle "playchess.com"]
[Source "ChessBase"]
[SourceQuality "1"]
[TimeControl "5400+30"]

1. e4 e5 2. f4 d5 3. exd5 exf4 4. Nf3 Nf6 5. Nc3 Be7 6. d4 Nh5 7. Bb5+ Bd7 8. Bxd7+ Nxd7 9. O-O O-O 10. Ne5 Ndf6 11. Qf3 g5 12. Bd2 Rc8 13. Rae1 h6 14. Ne4 Qxd5 15. Nxf6+ Nxf6 16. Qxd5 Nxd5 17. Nd7 Rfd8 18. Ne5 Bf6 19. c3 c5 20. Kh1 cxd4 21. cxd4 Rc2 22. Bc1 Nb4 23. Ng4 Bg7 24. a3 Nd3 25. Rd1 Nxc1 26. b4 Ne2 27. d5 h5 28. Nf2 Nc3 29. Nh3 Nxd1 30. Rxd1 Bf6 31. d6 Rc6 32. d7 Rc7 33. Re1 Rcxd7 34. Nf2 Bb2 35. a4 Bc3 36. Rb1 Bxb4 37. h4 Bc5 38. Ne4 Rd1+ 39. Rxd1 Rxd1+ 40. Kh2 Bg1+ 41. Kh1 g4 42. a5 g3 43. Nc3 Ra1 0-1

[Event "Portugal-ch Seniors-65 2022"]
[Site "Atouguia da Baleia"]
[Date "2022.06.19"]
[Round "5.4"]
[White "Alves, Fernando Pereira Rib"]
[Black "Catarro, Jose Joao Dias"]
[Result "1-0"]
[ECO "B01"]
[WhiteElo "1524"]
[BlackElo "1833"]
[Annotator "NA RC"]
[PlyCount "91"]
[EventDate "2022.06.09"]
[EventType "swiss"]
[EventCountry "POR"]
[SourceTitle "playchess.com"]
[Source "ChessBase"]
[SourceQuality "1"]
[TimeControl "5400+30"]

1. e4 {[%emt 0:00:03]} d5 {[%emt 0:00:09]} 2. e5 {[%emt 0:00:31]} Bf5 {[%emt 0:00:12]} 3. d4 {[%emt 0:00:24]} e6 {[%emt 0:00:08]} 4. a3 {[%emt 0:00:36]} c5 {[%emt 0:00:17]} 5. c3 {[%emt 0:00:21]} Nc6 {[%emt 0:00:32]} 6. Nf3 {[%emt 0:01:04]} Qb6 {[%emt 0:01:35]} 7. Be2 {[%emt 0:06:50]} h6 {[%emt 0:06:23]} 8. Bd3 {[%emt 0:13:56]} Bxd3 {[%emt 0:04:08]} 9. Qxd3 {[%emt 0:00:18]} Rc8 {[%emt 0:04:42]} 10. O-O {[%emt 0:00:31]} c4 {[%emt 0:02:08]} 11. Qe2 {[%emt 0:02:43]} Na5 {[%emt 0:01:45]} 12. Be3 {[%emt 0:02:13]} Ne7 {[%emt 0:01:14]} 13. Qc2 {[%emt 0:08:41]} Nb3 {[%emt 0:00:30]} 14. Ra2 {[%emt 0:01:25]} a5 {[%emt 0:00:37]} 15. Nfd2 {[%emt 0:03:41]} a4 {[%emt 0:02:49]} 16. f4 {[%emt 0:00:13]} Nf5 {[%emt 0:00:43]} 17. Bf2 {[%emt 0:00:01]} h5 {[%emt 0:08:52]} 18. Nf3 {[%emt 0:01:34]} Be7 {[%emt 0:08:13]} 19. Qd1 {[%emt 0:00:54]} Qd8 {[%emt 0:00:33]} 20. Nbd2 {[%emt 0:00:22]} b5 {[%emt 0:00:13]} 21. Nxb3 {[%emt 0:01:02]} cxb3 {[%emt 0:01:14]} 22. Ra1 {[%emt 0:00:30]} Kd7 {[%emt 0:02:33]} 23. Qe2 {[%emt 0:01:18]} Kc6 {[%emt 0:00:00]} 24. Rac1 {[%emt 0:00:38]} Kb6 {[%emt 0:01:09]} 25. Rfd1 {[%emt 0:02:46]} h4 {[%emt 0:03:15]} 26. Nd2 {[%emt 0:01:19]} g5 {[%emt 0:02:33]} 27. c4 {[%emt 0:09:22]} gxf4 {[%emt 0:00:48]} 28. c5+ {[%emt 0:03:25]} Kc6 {[%emt 0:03:29]} 29. Nxb3 {[%emt 0:00:33]} axb3 {[%emt 0:01:08]} 30. a4 {[%emt 0:00:08]} bxa4 {[%emt 0:00:57]} 31. Qa6+ {[%emt 0:00:34]} Kd7 {[%emt 0:00:44]} 32. Qxa4+ {[%emt 0:01:11]} Rc6 {[%emt 0:00:36]} 33. Ra1 {[%emt 0:00:50]} Qb8 {[%emt 0:01:16]} 34. Rd3 {[%emt 0:08:02]} f6 {[%emt 0:07:58]} 35. Rxb3 {[%emt 0:01:31]} Qc7 {[%emt 0:03:56]} 36. Rb6 {[%emt 0:01:28]} Rc8 {[%emt 0:06:06]} 37. Qb5 {[%emt 0:01:15]} Ke8 {[%emt 0:03:00]} 38. Rb7 {[%emt 0:02:31]} Qd8 {[%emt 0:01:12]} 39. Ra6 {[%emt 0:00:34]} Kf8 {[%emt 0:02:45]} 40. Rxc6 {[%emt 0:01:18]} fxe5 {[%emt 0:01:49]} 41. Rxc8 {[%emt 0:00:31]} Qxc8 {[%emt 0:00:08]} 42. Rb8 {[%emt 0:00:08]} Qxb8 {[%emt 0:02:41]} 43. Qxb8+ {[%emt 0:00:14]} Kf7 {[%emt 0:00:51]} 44. Qxe5 {[%emt 0:00:18]} Bf6 {[%emt 0:00:43]} 45. Qxf4 {[%emt 0:00:14]} Kg6 {[%emt 0:00:57]} 46. c6 {[%emt 0:00:30]} 1-0

[Event "Portugal-ch Seniors-65 2022"]
[Site "Atouguia da Baleia"]
[Date "2022.06.19"]
[Round "5.5"]
[White "Seia, Joao Manuel"]
[Black "Santos, Amadeu Solha"]
[Result "1-0"]
[ECO "C62"]
[WhiteElo "1657"]
[BlackElo "1457"]
[Annotator "NA RC"]
[PlyCount "47"]
[EventDate "2022.06.09"]
[EventType "swiss"]
[EventCountry "POR"]
[SourceTitle "playchess.com"]
[Source "ChessBase"]
[SourceQuality "1"]
[TimeControl "5400+30"]

1. e4 {[%emt 0:00:04]} e5 {[%emt 0:00:11]} 2. Nf3 {[%emt 0:00:02]} Nc6 {[%emt 0:00:21]} 3. Bb5 {[%emt 0:00:02]} d6 {[%emt 0:00:21]} 4. d4 {[%emt 0:00:12]} exd4 {[%emt 0:00:43]} 5. Nxd4 {[%emt 0:00:51]} Bd7 {[%emt 0:00:23]} 6. Nc3 {[%emt 0:00:12]} Nf6 {[%emt 0:00:51]} 7. Bxc6 {[%emt 0:00:21]} Bxc6 {[%emt 0:00:32]} 8. Nxc6 {[%emt 0:02:32]} bxc6 {[%emt 0:00:16]} 9. b3 {[%emt 0:00:36]} d5 {[%emt 0:03:25]} 10. exd5 {[%emt 0:06:10]} Bb4 {[%emt 0:11:08]} 11. Qe2+ {[%emt 0:00:50]} Qe7 {[%emt 0:01:47]} 12. Qxe7+ {[%emt 0:02:37]} Kxe7 {[%emt 0:00:44]} 13. Bd2 {[%emt 0:00:26]} Nxd5 {[%emt 0:00:34]} 14. Nxd5+ {[%emt 0:01:00]} cxd5 {[%emt 0:01:43]} 15. Bxb4+ {[%emt 0:00:19]} Kd7 {[%emt 0:00:42]} 16. O-O-O {[%emt 0:00:28]} c6 {[%emt 0:00:22]} 17. Rhe1 {[%emt 0:00:28]} Rhe8 {[%emt 0:01:01]} 18. Rxe8 {[%emt 0:00:23]} Rxe8 {[%emt 0:00:08]} 19. Re1 {[%emt 0:00:27]} Rb8 {[%emt 0:02:34]} 20. Re7+ {[%emt 0:01:30]} Kd8 {[%emt 0:01:01]} 21. Ba3 {[%emt 0:00:24]} a6 {[%emt 0:02:08]} 22. Rxf7 {[%emt 0:00:45]} Rb5 {[%emt 0:00:24]} 23. Rxg7 {[%emt 0:00:53]} Ra5 {[%emt 0:00:19]} 24. Kb2 {[%emt 0:00:23]} 1-0